[Event "Early-Titled-Tuesday-Blitz-September-12-2023"]
[Site "Chess.com"]
[Date "2023.09.12"]
[Round "1"]
[White "guillembaches"]
[Black "dropstoneDP"]
[Result "1/2-1/2"]
[WhiteElo "2534"]
[BlackElo "3006"]
[TimeControl "180+1"]
[EndTime "8:02:48 PDT"]
[Termination "Game drawn by repetition"]

1. e4 {[%clk 0:03:00.9]} 1... e5 {[%clk 0:02:57.9]} 2. Nf3 {[%clk 0:03:01.2]}
2... Nf6 {[%clk 0:02:58.1]} 3. Nc3 {[%clk 0:03:01.7]} 3... Nc6 {[%clk 0:02:58]}
4. d4 {[%clk 0:03:01.8]} 4... exd4 {[%clk 0:02:58.9]} 5. Nxd4 {[%clk 0:03:02.2]}
5... Bb4 {[%clk 0:02:59.3]} 6. Nxc6 {[%clk 0:03:02.5]} 6... bxc6 {[%clk
0:03:00.2]} 7. Bd3 {[%clk 0:03:02.8]} 7... O-O {[%clk 0:03:00.8]} 8. O-O {[%clk
0:03:02.6]} 8... d5 {[%clk 0:03:01.3]} 9. Bd2 {[%clk 0:03:02.9]} 9... Bxc3
{[%clk 0:03:00.2]} 10. Bxc3 {[%clk 0:03:03.8]} 10... dxe4 {[%clk 0:03:00.7]} 11.
Bxf6 {[%clk 0:03:01.3]} 11... Qxf6 {[%clk 0:03:01.6]} 12. Bxe4 {[%clk
0:03:01.4]} 12... Qxb2 {[%clk 0:03:01.7]} 13. Bxc6 {[%clk 0:03:01.7]} 13... Rb8
{[%clk 0:03:01.4]} 14. Rb1 {[%clk 0:03:01.6]} 14... Qxb1 {[%clk 0:03:01.9]} 15.
Qxb1 {[%clk 0:03:01.9]} 15... Rxb1 {[%clk 0:03:02.3]} 16. Rxb1 {[%clk
0:03:01.9]} 16... Rd8 {[%clk 0:03:02.8]} 17. Bf3 {[%clk 0:02:54.4]} 17... Kf8
{[%clk 0:03:00.9]} 18. Rb8 {[%clk 0:02:48.3]} 18... Re8 {[%clk 0:03:00.1]} 19.
h4 {[%clk 0:02:47.2]} 19... Bf5 {[%clk 0:02:59.6]} 20. Rb7 {[%clk 0:02:40.8]}
20... Bxc2 {[%clk 0:02:57.6]} 21. Rxc7 {[%clk 0:02:33.4]} 21... Re1+ {[%clk
0:02:50.4]} 22. Kh2 {[%clk 0:02:30.2]} 22... Be4 {[%clk 0:02:51.3]} 23. Rxa7
{[%clk 0:02:20.4]} 23... Bxf3 {[%clk 0:02:50.4]} 24. gxf3 {[%clk 0:02:20.7]}
24... h5 {[%clk 0:02:50.7]} 25. Kg3 {[%clk 0:02:17.8]} 25... g6 {[%clk
0:02:24.4]} 26. Ra8+ {[%clk 0:02:14]} 26... Kg7 {[%clk 0:02:23.2]} 27. Ra6
{[%clk 0:02:13.8]} 27... Rg1+ {[%clk 0:02:21.4]} 28. Kh2 {[%clk 0:02:13.5]}
28... Ra1 {[%clk 0:02:20.7]} 29. Kg3 {[%clk 0:02:13.2]} 29... Rg1+ {[%clk
0:02:20.6]} 30. Kh2 {[%clk 0:02:13.3]} 30... Ra1 {[%clk 0:02:20.7]} 31. Kg3
{[%clk 0:02:13.6]} 31... Rg1+ {[%clk 0:02:20.1]} 1/2-1/2

[Event "Early-Titled-Tuesday-Blitz-September-12-2023"]
[Site "Chess.com"]
[Date "2023.09.12"]
[Round "1"]
[White "campochess"]
[Black "Alphafischer2019"]
[Result "0-1"]
[WhiteElo "2112"]
[BlackElo "2550"]
[TimeControl "180+1"]
[EndTime "8:03:03 PDT"]
[Termination "Alphafischer2019 won by resignation"]

1. e4 {[%clk 0:02:57.9]} 1... e6 {[%clk 0:02:58.3]} 2. Qe2 {[%clk 0:02:55.4]}
2... d5 {[%clk 0:02:56.8]} 3. exd5 {[%clk 0:02:54.8]} 3... Qxd5 {[%clk
0:02:57.5]} 4. Nc3 {[%clk 0:02:54.9]} 4... Qd8 {[%clk 0:02:57.1]} 5. b3 {[%clk
0:02:55]} 5... Nf6 {[%clk 0:02:56.5]} 6. Bb2 {[%clk 0:02:55]} 6... c5 {[%clk
0:02:57]} 7. Nf3 {[%clk 0:02:54.8]} 7... Nc6 {[%clk 0:02:57.2]} 8. g3 {[%clk
0:02:53.2]} 8... Be7 {[%clk 0:02:57.3]} 9. Bg2 {[%clk 0:02:53.2]} 9... O-O
{[%clk 0:02:57.6]} 10. O-O {[%clk 0:02:52.9]} 10... Rb8 {[%clk 0:02:53.5]} 11.
a4 {[%clk 0:02:51.6]} 11... b6 {[%clk 0:02:53.7]} 12. Rad1 {[%clk 0:02:48.3]}
12... Bb7 {[%clk 0:02:53.4]} 13. Ng5 {[%clk 0:02:46.5]} 13... Nd4 {[%clk
0:02:52.4]} 14. Qd3 {[%clk 0:02:43.8]} 14... Bxg2 {[%clk 0:02:51.2]} 15. Kxg2
{[%clk 0:02:43.7]} 15... h6 {[%clk 0:02:45.7]} 16. Nge4 {[%clk 0:02:42.7]} 16...
Nxe4 {[%clk 0:02:40.6]} 17. Nxe4 {[%clk 0:02:42.5]} 17... Qd5 {[%clk 0:02:33.9]}
18. f3 {[%clk 0:02:41.2]} 18... Rfd8 {[%clk 0:02:30.4]} 19. Qc3 {[%clk
0:02:28.1]} 19... Bf8 {[%clk 0:02:25.4]} 20. Qc4 {[%clk 0:02:27.8]} 20... Qxc4
{[%clk 0:02:23.7]} 21. bxc4 {[%clk 0:02:27.6]} 21... Nxc2 {[%clk 0:02:24.4]} 22.
Be5 {[%clk 0:02:15.6]} 22... Rb7 {[%clk 0:02:20.2]} 23. Bc3 {[%clk 0:02:13.5]}
23... Rbd7 {[%clk 0:02:17]} 24. Kf2 {[%clk 0:02:12.1]} 24... f5 {[%clk
0:02:15.1]} 25. Rc1 {[%clk 0:02:09.8]} 25... Nb4 {[%clk 0:02:08.7]} 26. Rfe1
{[%clk 0:02:06.4]} 26... fxe4 {[%clk 0:02:07.5]} 27. Rxe4 {[%clk 0:02:05.2]}
27... Nd3+ {[%clk 0:02:07.6]} 0-1

[Event "Early-Titled-Tuesday-Blitz-September-12-2023"]
[Site "Chess.com"]
[Date "2023.09.12"]
[Round "1"]
[White "Defend1r"]
[Black "jraosam"]
[Result "0-1"]
[WhiteElo "2523"]
[BlackElo "1979"]
[TimeControl "180+1"]
[EndTime "8:03:04 PDT"]
[Termination "jraosam won by resignation"]

1. e4 {[%clk 0:02:59.2]} 1... c5 {[%clk 0:02:30.8]} 2. Nf3 {[%clk 0:02:58.7]}
2... e6 {[%clk 0:02:30.3]} 3. c3 {[%clk 0:02:56.4]} 3... Nf6 {[%clk 0:02:29.1]}
4. e5 {[%clk 0:02:55.6]} 4... Nd5 {[%clk 0:02:29.8]} 5. d4 {[%clk 0:02:55.6]}
5... cxd4 {[%clk 0:02:30.7]} 6. cxd4 {[%clk 0:02:55.6]} 6... Nc6 {[%clk
0:02:30.9]} 7. Bc4 {[%clk 0:02:56.1]} 7... d6 {[%clk 0:02:30]} 8. Qe2 {[%clk
0:02:56.1]} 8... dxe5 {[%clk 0:02:29.9]} 9. dxe5 {[%clk 0:02:55.9]} 9... Bb4+
{[%clk 0:02:29.3]} 10. Nbd2 {[%clk 0:02:51.8]} 10... O-O {[%clk 0:02:28.6]} 11.
O-O {[%clk 0:02:51.3]} 11... a6 {[%clk 0:02:19.6]} 12. Ne4 {[%clk 0:02:46.9]}
12... h6 {[%clk 0:02:19.4]} 13. a3 {[%clk 0:02:45.4]} 13... Be7 {[%clk
0:02:19.9]} 14. b4 {[%clk 0:02:45.3]} 14... b5 {[%clk 0:02:19.7]} 15. Bb3 {[%clk
0:02:45.3]} 15... Qc7 {[%clk 0:02:20.1]} 16. Bb2 {[%clk 0:02:44.2]} 16... a5
{[%clk 0:02:17.1]} 17. bxa5 {[%clk 0:02:37.1]} 17... Nxa5 {[%clk 0:02:15.3]} 18.
Rac1 {[%clk 0:02:36.9]} 18... Qb6 {[%clk 0:02:14.6]} 19. Bd4 {[%clk 0:02:35.8]}
19... Qb7 {[%clk 0:02:13.8]} 20. Bc2 {[%clk 0:02:26.3]} 20... Bxa3 {[%clk
0:02:14.1]} 21. Qd3 {[%clk 0:02:26.1]} 21... Bxc1 {[%clk 0:02:09]} 22. Nf6+
{[%clk 0:02:25.9]} 22... Nxf6 {[%clk 0:02:08.7]} 23. Qh7+ {[%clk 0:02:26.8]}
23... Nxh7 {[%clk 0:02:08.4]} 24. Rxc1 {[%clk 0:02:18.3]} 24... Bd7 {[%clk
0:02:02.9]} 25. Re1 {[%clk 0:02:14.3]} 25... Rfc8 {[%clk 0:01:59.4]} 26. Be4
{[%clk 0:02:13.3]} 26... Bc6 {[%clk 0:01:59.2]} 27. Bxh7+ {[%clk 0:02:13]} 27...
Kxh7 {[%clk 0:01:58.6]} 28. Nh4 {[%clk 0:02:13.4]} 28... g5 {[%clk 0:01:58]} 0-1

[Event "Early-Titled-Tuesday-Blitz-September-12-2023"]
[Site "Chess.com"]
[Date "2023.09.12"]
[Round "1"]
[White "orestn"]
[Black "Aygehovit1992"]
[Result "0-1"]
[WhiteElo "2417"]
[BlackElo "2732"]
[TimeControl "180+1"]
[EndTime "8:03:09 PDT"]
[Termination "Aygehovit1992 won by resignation"]

1. e4 {[%clk 0:02:55.4]} 1... c5 {[%clk 0:02:59.3]} 2. Nf3 {[%clk 0:02:55.4]}
2... d6 {[%clk 0:02:59.9]} 3. d4 {[%clk 0:02:56]} 3... cxd4 {[%clk 0:03:00.8]}
4. Nxd4 {[%clk 0:02:56.2]} 4... Nf6 {[%clk 0:03:01.4]} 5. Nc3 {[%clk 0:02:56.6]}
5... g6 {[%clk 0:03:01.7]} 6. Be3 {[%clk 0:02:56.4]} 6... Nc6 {[%clk 0:03:01.8]}
7. f3 {[%clk 0:02:57.1]} 7... h5 {[%clk 0:03:02]} 8. Qd2 {[%clk 0:02:57.1]} 8...
Nxd4 {[%clk 0:03:02.5]} 9. Bxd4 {[%clk 0:02:56.9]} 9... Bh6 {[%clk 0:03:02.8]}
10. Be3 {[%clk 0:02:56.8]} 10... Bxe3 {[%clk 0:03:03.3]} 11. Qxe3 {[%clk
0:02:57.6]} 11... Be6 {[%clk 0:03:02.8]} 12. Bb5+ {[%clk 0:02:56.6]} 12... Kf8
{[%clk 0:03:02.9]} 13. Ba4 {[%clk 0:02:57.1]} 13... Qa5 {[%clk 0:03:01.5]} 14.
O-O {[%clk 0:02:55.3]} 14... Rc8 {[%clk 0:03:01.4]} 15. Bb3 {[%clk 0:02:55.4]}
15... h4 {[%clk 0:03:00.5]} 16. Bxe6 {[%clk 0:02:55.1]} 16... fxe6 {[%clk
0:03:01.4]} 17. Kh1 {[%clk 0:02:52.8]} 17... Nh5 {[%clk 0:02:57.2]} 18. Rfe1
{[%clk 0:02:43.8]} 18... Kf7 {[%clk 0:02:31]} 19. e5 {[%clk 0:02:33.2]} 19... d5
{[%clk 0:02:31]} 20. Kg1 {[%clk 0:02:28.1]} 20... Rc4 {[%clk 0:02:24.7]} 21. Qf2
{[%clk 0:02:24.4]} 21... Nf4 {[%clk 0:02:15]} 22. Rac1 {[%clk 0:02:17.9]} 22...
Rh5 {[%clk 0:01:42.8]} 23. a3 {[%clk 0:02:13]} 23... Rg5 {[%clk 0:01:39.4]} 0-1

[Event "Early-Titled-Tuesday-Blitz-September-12-2023"]
[Site "Chess.com"]
[Date "2023.09.12"]
[Round "1"]
[White "TRadjabov"]
[Black "bazar-wokzal"]
[Result "1-0"]
[WhiteElo "3023"]
[BlackElo "2527"]
[TimeControl "180+1"]
[EndTime "8:03:11 PDT"]
[Termination "TRadjabov won by resignation"]

1. c4 {[%clk 0:02:59.4]} 1... e5 {[%clk 0:02:59.6]} 2. Nc3 {[%clk 0:02:59.3]}
2... Nf6 {[%clk 0:02:59.4]} 3. Nf3 {[%clk 0:03:00]} 3... e4 {[%clk 0:02:59.5]}
4. Ng5 {[%clk 0:02:56.1]} 4... c6 {[%clk 0:02:59.9]} 5. Ngxe4 {[%clk 0:02:55.6]}
5... Nxe4 {[%clk 0:02:59.4]} 6. Nxe4 {[%clk 0:02:55.8]} 6... d5 {[%clk 0:03:00]}
7. cxd5 {[%clk 0:02:56.5]} 7... cxd5 {[%clk 0:03:00.9]} 8. Ng3 {[%clk
0:02:57.1]} 8... h5 {[%clk 0:03:00.7]} 9. h4 {[%clk 0:02:57.2]} 9... Bd6 {[%clk
0:02:57.2]} 10. d3 {[%clk 0:02:57.5]} 10... Bxg3 {[%clk 0:02:54.7]} 11. fxg3
{[%clk 0:02:57.4]} 11... Nc6 {[%clk 0:02:54.3]} 12. Bf4 {[%clk 0:02:56.4]} 12...
O-O {[%clk 0:02:52.7]} 13. e3 {[%clk 0:02:56.4]} 13... Qb6 {[%clk 0:02:43.2]}
14. Qd2 {[%clk 0:02:54.9]} 14... Bg4 {[%clk 0:02:37.2]} 15. Be2 {[%clk 0:02:53]}
15... Bxe2 {[%clk 0:02:31.3]} 16. Qxe2 {[%clk 0:02:53.7]} 16... Qb4+ {[%clk
0:02:26.7]} 17. Kf2 {[%clk 0:02:53.1]} 17... Rae8 {[%clk 0:02:19.3]} 18. Rhc1
{[%clk 0:02:52.3]} 18... Ne5 {[%clk 0:02:14.7]} 19. a3 {[%clk 0:02:40.9]} 19...
Qb6 {[%clk 0:02:09.5]} 20. Bxe5 {[%clk 0:02:27.4]} 20... Rxe5 {[%clk 0:02:08.7]}
21. d4 {[%clk 0:02:27.6]} 21... Rf5+ {[%clk 0:02:00.6]} 22. Kg1 {[%clk
0:02:27.4]} 22... Re8 {[%clk 0:01:59.2]} 23. Qd3 {[%clk 0:02:17.4]} 23... Qh6
{[%clk 0:01:49.5]} 24. Qxf5 {[%clk 0:02:15.4]} 24... Qxe3+ {[%clk 0:01:47.3]}
25. Qf2 {[%clk 0:02:14.6]} 1-0

[Event "Early-Titled-Tuesday-Blitz-September-12-2023"]
[Site "Chess.com"]
[Date "2023.09.12"]
[Round "1"]
[White "tomesao"]
[Black "TregubovP"]
[Result "0-1"]
[WhiteElo "2353"]
[BlackElo "2656"]
[TimeControl "180+1"]
[EndTime "8:03:16 PDT"]
[Termination "TregubovP won by resignation"]

1. e4 {[%clk 0:03:00.4]} 1... c5 {[%clk 0:02:51.1]} 2. Nf3 {[%clk 0:02:55.6]}
2... e6 {[%clk 0:02:49.3]} 3. d4 {[%clk 0:02:54.9]} 3... cxd4 {[%clk 0:02:49.3]}
4. Nxd4 {[%clk 0:02:54.1]} 4... Nf6 {[%clk 0:02:50.2]} 5. Nc3 {[%clk 0:02:53.5]}
5... Nc6 {[%clk 0:02:50.7]} 6. Ndb5 {[%clk 0:02:50.1]} 6... Bb4 {[%clk
0:02:49.8]} 7. a3 {[%clk 0:02:48.6]} 7... Bxc3+ {[%clk 0:02:49.1]} 8. Nxc3
{[%clk 0:02:49.5]} 8... d5 {[%clk 0:02:49.4]} 9. exd5 {[%clk 0:02:49.5]} 9...
exd5 {[%clk 0:02:47.9]} 10. Bd3 {[%clk 0:02:49.3]} 10... O-O {[%clk 0:02:48.5]}
11. Kf1 {[%clk 0:02:49.5]} 11... d4 {[%clk 0:02:49]} 12. Ne4 {[%clk 0:02:45.6]}
12... Bf5 {[%clk 0:02:45.3]} 13. Nxf6+ {[%clk 0:02:41.4]} 13... Qxf6 {[%clk
0:02:44.7]} 14. g3 {[%clk 0:02:32.1]} 14... Ne5 {[%clk 0:02:37.7]} 15. Bxf5
{[%clk 0:02:17.3]} 15... Qxf5 {[%clk 0:02:37.2]} 16. Bf4 {[%clk 0:02:15]} 16...
Qe4 {[%clk 0:02:16.4]} 17. Rg1 {[%clk 0:02:14.5]} 17... Nf3 {[%clk 0:02:15.4]}
18. Rg2 {[%clk 0:02:14.2]} 18... Rfe8 {[%clk 0:02:11.8]} 19. Bd2 {[%clk
0:01:43.7]} 19... Rac8 {[%clk 0:02:03]} 20. Rc1 {[%clk 0:01:42.4]} 20... Rxc2
{[%clk 0:01:59.4]} 0-1

[Event "Early-Titled-Tuesday-Blitz-September-12-2023"]
[Site "Chess.com"]
[Date "2023.09.12"]
[Round "1"]
[White "djano"]
[Black "KatakuriDono"]
[Result "1-0"]
[WhiteElo "2627"]
[BlackElo "2317"]
[TimeControl "180+1"]
[EndTime "8:03:22 PDT"]
[Termination "djano won by resignation"]

1. e4 {[%clk 0:03:00.9]} 1... e5 {[%clk 0:02:59.3]} 2. Nf3 {[%clk 0:03:00.4]}
2... Nc6 {[%clk 0:02:59.8]} 3. d4 {[%clk 0:03:01]} 3... exd4 {[%clk 0:02:59.6]}
4. Nxd4 {[%clk 0:03:01.9]} 4... Qf6 {[%clk 0:02:59.8]} 5. Nf3 {[%clk 0:02:59.6]}
5... Qg6 {[%clk 0:02:58]} 6. Nc3 {[%clk 0:02:54.3]} 6... Nf6 {[%clk 0:02:57.5]}
7. Bd3 {[%clk 0:02:49.8]} 7... Qxg2 {[%clk 0:02:51.4]} 8. Rg1 {[%clk 0:02:50.1]}
8... Qh3 {[%clk 0:02:51.3]} 9. Nb5 {[%clk 0:02:42.2]} 9... Kd8 {[%clk
0:02:47.1]} 10. Bf4 {[%clk 0:02:35.6]} 10... d6 {[%clk 0:02:44.5]} 11. Ng5
{[%clk 0:02:33.4]} 11... Qd7 {[%clk 0:02:28.4]} 12. Bc4 {[%clk 0:02:33]} 12...
d5 {[%clk 0:02:05.3]} 13. Bxc7+ {[%clk 0:02:16]} 13... Ke8 {[%clk 0:02:02.6]}
14. exd5 {[%clk 0:02:11.4]} 14... Nb4 {[%clk 0:01:46]} 15. d6 {[%clk 0:02:01.6]}
15... Qf5 {[%clk 0:01:34.5]} 16. Bxf7+ {[%clk 0:01:55.4]} 16... Kd7 {[%clk
0:01:27.8]} 17. Be6+ {[%clk 0:01:55]} 1-0

[Event "Early-Titled-Tuesday-Blitz-September-12-2023"]
[Site "Chess.com"]
[Date "2023.09.12"]
[Round "1"]
[White "imdarealist"]
[Black "Alexei_Gubajdullin"]
[Result "0-1"]
[WhiteElo "2312"]
[BlackElo "2625"]
[TimeControl "180+1"]
[EndTime "8:03:37 PDT"]
[Termination "Alexei_Gubajdullin won by checkmate"]

1. d4 {[%clk 0:03:00]} 1... Nf6 {[%clk 0:02:59.7]} 2. Bf4 {[%clk 0:03:00.5]}
2... g6 {[%clk 0:02:59.4]} 3. e3 {[%clk 0:02:59.7]} 3... Bg7 {[%clk 0:02:59.5]}
4. h3 {[%clk 0:02:58.9]} 4... O-O {[%clk 0:02:59.7]} 5. Bd3 {[%clk 0:02:48]}
5... d6 {[%clk 0:02:59.2]} 6. e4 {[%clk 0:02:47.1]} 6... Nc6 {[%clk 0:02:56.8]}
7. c3 {[%clk 0:02:47]} 7... e5 {[%clk 0:02:55.6]} 8. dxe5 {[%clk 0:02:46.8]}
8... Nxe5 {[%clk 0:02:55.7]} 9. Bc2 {[%clk 0:02:41.5]} 9... Nh5 {[%clk
0:02:53.8]} 10. Bh2 {[%clk 0:02:38.8]} 10... Qh4 {[%clk 0:02:49.1]} 11. Nf3
{[%clk 0:02:33.8]} 11... Nxf3+ {[%clk 0:02:41.2]} 12. Qxf3 {[%clk 0:02:34.7]}
12... Be5 {[%clk 0:02:41.4]} 13. Nd2 {[%clk 0:02:28.9]} 13... Bxh2 {[%clk
0:02:40.3]} 14. Rxh2 {[%clk 0:02:29.8]} 14... Be6 {[%clk 0:02:38]} 15. O-O-O
{[%clk 0:02:29]} 15... a5 {[%clk 0:02:37.7]} 16. g3 {[%clk 0:02:14]} 16... Qg5
{[%clk 0:02:36.6]} 17. Kb1 {[%clk 0:02:08.8]} 17... a4 {[%clk 0:02:33.4]} 18.
Qe2 {[%clk 0:01:54.5]} 18... Qc5 {[%clk 0:02:29.6]} 19. f4 {[%clk 0:01:31.7]}
19... a3 {[%clk 0:02:27]} 20. f5 {[%clk 0:01:23.7]} 20... Bxa2+ {[%clk
0:02:12.5]} 21. Kxa2 {[%clk 0:01:23.8]} 21... axb2+ {[%clk 0:02:12.6]} 22. Kb1
{[%clk 0:01:24]} 22... Ra1+ {[%clk 0:02:09.4]} 23. Kxb2 {[%clk 0:01:24.4]} 23...
Qa3# {[%clk 0:02:09.2]} 0-1

[Event "Early-Titled-Tuesday-Blitz-September-12-2023"]
[Site "Chess.com"]
[Date "2023.09.12"]
[Round "1"]
[White "themind1hunter"]
[Black "lluiss"]
[Result "1-0"]
[WhiteElo "2556"]
[BlackElo "2165"]
[TimeControl "180+1"]
[EndTime "8:03:40 PDT"]
[Termination "themind1hunter won by resignation"]

1. e4 {[%clk 0:02:56.9]} 1... c5 {[%clk 0:02:59.5]} 2. Nf3 {[%clk 0:02:55.8]}
2... d6 {[%clk 0:02:59.7]} 3. d4 {[%clk 0:02:55.5]} 3... cxd4 {[%clk 0:02:59.2]}
4. Nxd4 {[%clk 0:02:56.1]} 4... Nf6 {[%clk 0:02:58.5]} 5. Nc3 {[%clk 0:02:54.3]}
5... g6 {[%clk 0:02:58.1]} 6. Be3 {[%clk 0:02:52.5]} 6... Bg7 {[%clk 0:02:57.7]}
7. f3 {[%clk 0:02:53.2]} 7... O-O {[%clk 0:02:57.7]} 8. Qd2 {[%clk 0:02:53.9]}
8... Nc6 {[%clk 0:02:57.7]} 9. O-O-O {[%clk 0:02:54.6]} 9... Nxd4 {[%clk
0:02:58]} 10. Bxd4 {[%clk 0:02:54.5]} 10... Be6 {[%clk 0:02:58.6]} 11. Kb1
{[%clk 0:02:53.7]} 11... Qc7 {[%clk 0:02:58.7]} 12. h4 {[%clk 0:02:52.3]} 12...
Rfc8 {[%clk 0:02:58.3]} 13. Bd3 {[%clk 0:02:51.6]} 13... Qa5 {[%clk 0:02:53.4]}
14. a3 {[%clk 0:02:44.1]} 14... Rab8 {[%clk 0:02:51.4]} 15. h5 {[%clk
0:02:43.8]} 15... b5 {[%clk 0:02:48.6]} 16. hxg6 {[%clk 0:02:43.8]} 16... hxg6
{[%clk 0:02:48.3]} 17. Qg5 {[%clk 0:02:43.5]} 17... Bc4 {[%clk 0:02:42]} 18. Nd5
{[%clk 0:02:04.4]} 18... Bxd5 {[%clk 0:02:40.3]} 19. exd5 {[%clk 0:02:05]} 19...
b4 {[%clk 0:02:39.7]} 20. Bxg6 {[%clk 0:01:53.2]} 20... fxg6 {[%clk 0:02:26.8]}
21. Qxg6 {[%clk 0:01:54.1]} 21... bxa3 {[%clk 0:02:08.7]} 22. Rh7 {[%clk
0:01:31.3]} 1-0

[Event "Early-Titled-Tuesday-Blitz-September-12-2023"]
[Site "Chess.com"]
[Date "2023.09.12"]
[Round "1"]
[White "Arimin1329"]
[Black "sergeikim"]
[Result "0-1"]
[WhiteElo "2232"]
[BlackElo "2572"]
[TimeControl "180+1"]
[EndTime "8:03:44 PDT"]
[Termination "sergeikim won by resignation"]

1. d4 {[%clk 0:02:58.4]} 1... Nf6 {[%clk 0:02:59.9]} 2. Nf3 {[%clk 0:02:57.9]}
2... g6 {[%clk 0:03:00.5]} 3. Bf4 {[%clk 0:02:57.6]} 3... d6 {[%clk 0:03:01.1]}
4. c4 {[%clk 0:02:56.7]} 4... Bg7 {[%clk 0:03:01.7]} 5. Nc3 {[%clk 0:02:56.9]}
5... O-O {[%clk 0:03:02.3]} 6. h3 {[%clk 0:02:57.4]} 6... Nbd7 {[%clk 0:03:02]}
7. e3 {[%clk 0:02:57.8]} 7... b6 {[%clk 0:03:02.3]} 8. Be2 {[%clk 0:02:57.6]}
8... Bb7 {[%clk 0:03:02.6]} 9. O-O {[%clk 0:02:57.9]} 9... Ne4 {[%clk
0:03:02.5]} 10. Nxe4 {[%clk 0:02:56.7]} 10... Bxe4 {[%clk 0:03:01.4]} 11. Nd2
{[%clk 0:02:56.9]} 11... Bb7 {[%clk 0:03:02]} 12. Bf3 {[%clk 0:02:56.3]} 12...
Qc8 {[%clk 0:03:02.6]} 13. Bg5 {[%clk 0:02:49.8]} 13... e5 {[%clk 0:02:57]} 14.
dxe5 {[%clk 0:02:23]} 14... Nxe5 {[%clk 0:02:56.4]} 15. Bxb7 {[%clk 0:02:12.3]}
15... Qxb7 {[%clk 0:02:56]} 16. Qc2 {[%clk 0:02:05.8]} 16... Rfe8 {[%clk
0:02:45.6]} 17. Rad1 {[%clk 0:02:04.8]} 17... a5 {[%clk 0:02:42.3]} 18. Bf4
{[%clk 0:02:03.2]} 18... a4 {[%clk 0:02:39.4]} 19. a3 {[%clk 0:01:58.9]} 19...
Qc6 {[%clk 0:02:31.9]} 20. Bxe5 {[%clk 0:01:57.6]} 20... Bxe5 {[%clk 0:02:30.5]}
21. Nf3 {[%clk 0:01:53.6]} 21... Bg7 {[%clk 0:02:29.4]} 22. Nd4 {[%clk
0:01:49.5]} 22... Qc5 {[%clk 0:02:21.8]} 23. Nb5 {[%clk 0:01:38.3]} 23... Re5
{[%clk 0:02:15]} 24. Rd3 {[%clk 0:01:33]} 24... Qc6 {[%clk 0:02:09.3]} 25. Rfd1
{[%clk 0:01:28.3]} 25... Rxb5 {[%clk 0:02:07.2]} 0-1

[Event "Early-Titled-Tuesday-Blitz-September-12-2023"]
[Site "Chess.com"]
[Date "2023.09.12"]
[Round "1"]
[White "Bastiandash"]
[Black "AnaKuchava"]
[Result "1-0"]
[WhiteElo "2565"]
[BlackElo "2212"]
[TimeControl "180+1"]
[EndTime "8:03:59 PDT"]
[Termination "Bastiandash won by checkmate"]

1. e4 {[%clk 0:02:55.1]} 1... c5 {[%clk 0:02:58.5]} 2. b3 {[%clk 0:02:54.3]}
2... Nc6 {[%clk 0:02:45.2]} 3. Bb2 {[%clk 0:02:54]} 3... Nf6 {[%clk 0:02:40.4]}
4. e5 {[%clk 0:02:53.1]} 4... Nd5 {[%clk 0:02:39.3]} 5. Nc3 {[%clk 0:02:53.3]}
5... Nxc3 {[%clk 0:02:37.8]} 6. Bxc3 {[%clk 0:02:54.2]} 6... g6 {[%clk
0:02:32.9]} 7. h4 {[%clk 0:02:53.6]} 7... Bg7 {[%clk 0:02:31.7]} 8. h5 {[%clk
0:02:54]} 8... Bxe5 {[%clk 0:01:52.8]} 9. Bxe5 {[%clk 0:02:53.4]} 9... Nxe5
{[%clk 0:01:52.8]} 10. f4 {[%clk 0:02:54]} 10... Nc6 {[%clk 0:01:51.6]} 11. hxg6
{[%clk 0:02:54.9]} 11... fxg6 {[%clk 0:01:51.3]} 12. Bd3 {[%clk 0:02:55.8]}
12... Kf7 {[%clk 0:01:36.2]} 13. Qg4 {[%clk 0:02:53.4]} 13... d5 {[%clk
0:01:34.7]} 14. Rxh7+ {[%clk 0:02:50.3]} 14... Rxh7 {[%clk 0:01:31]} 15. Qxg6+
{[%clk 0:02:48.2]} 15... Kf8 {[%clk 0:01:31.2]} 16. Qxh7 {[%clk 0:02:48]} 16...
Qd6 {[%clk 0:01:24.7]} 17. O-O-O {[%clk 0:02:02.7]} 17... c4 {[%clk 0:01:21.7]}
18. Bg6 {[%clk 0:01:57]} 18... Be6 {[%clk 0:01:06.2]} 19. Qh8+ {[%clk
0:01:48.9]} 19... Bg8 {[%clk 0:01:04.7]} 20. Qh6# {[%clk 0:01:49.4]} 1-0

[Event "Early-Titled-Tuesday-Blitz-September-12-2023"]
[Site "Chess.com"]
[Date "2023.09.12"]
[Round "1"]
[White "MatthewG-p4p"]
[Black "Maus7"]
[Result "1-0"]
[WhiteElo "2887"]
[BlackElo "2493"]
[TimeControl "180+1"]
[EndTime "8:04:12 PDT"]
[Termination "MatthewG-p4p won by resignation"]

1. f4 {[%clk 0:02:59.5]} 1... d5 {[%clk 0:02:59.1]} 2. Nf3 {[%clk 0:02:59.1]}
2... g6 {[%clk 0:02:59.7]} 3. g3 {[%clk 0:02:59.7]} 3... Bg7 {[%clk 0:03:00.2]}
4. Bg2 {[%clk 0:03:00.4]} 4... Nf6 {[%clk 0:03:00.7]} 5. O-O {[%clk 0:03:01.2]}
5... O-O {[%clk 0:03:01.4]} 6. d3 {[%clk 0:03:02.1]} 6... c5 {[%clk 0:03:02.2]}
7. Nc3 {[%clk 0:03:02.7]} 7... Nc6 {[%clk 0:03:01.6]} 8. e4 {[%clk 0:03:02.9]}
8... dxe4 {[%clk 0:02:51]} 9. dxe4 {[%clk 0:03:03.8]} 9... e5 {[%clk 0:02:51.6]}
10. Qxd8 {[%clk 0:03:02.4]} 10... Rxd8 {[%clk 0:02:51.4]} 11. Nxe5 {[%clk
0:03:03]} 11... Nxe5 {[%clk 0:02:42.6]} 12. fxe5 {[%clk 0:03:03.9]} 12... Ng4
{[%clk 0:02:43.3]} 13. Bg5 {[%clk 0:03:02.5]} 13... Re8 {[%clk 0:02:37.1]} 14.
Nd5 {[%clk 0:03:01.8]} 14... Bxe5 {[%clk 0:02:25.5]} 15. h3 {[%clk 0:03:01.9]}
15... Bd4+ {[%clk 0:01:19.2]} 16. Kh1 {[%clk 0:03:02.1]} 16... Nf2+ {[%clk
0:01:19.3]} 17. Kh2 {[%clk 0:03:02.6]} 17... Rf8 {[%clk 0:00:29.7]} 18. c3
{[%clk 0:02:57.1]} 18... Nd3 {[%clk 0:00:08.2]} 19. cxd4 {[%clk 0:02:56.6]}
19... cxd4 {[%clk 0:00:09.1]} 20. Bf6 {[%clk 0:02:55.8]} 20... h5 {[%clk
0:00:05.3]} 21. Bxd4 {[%clk 0:02:52]} 21... f5 {[%clk 0:00:05.1]} 22. Rad1
{[%clk 0:02:46.1]} 1-0